Cogmind - Beta 15 @@@ ROGUE MODE // 2025.05.29 @ 13:53:44 // AFD2019/Pay2Buy Player: celerysam Result: Destroyed by H-77 Assassin with High-powered Shotgun Performance ------------- Evolutions (7) 3500 Regions Visited (10) 2000 Robots Destroyed (33) 165 Value Destroyed (930) 930 Prototype IDs (4) 80 Alien Tech Used (0) 0 Bonus (700) 700 TOTAL SCORE: 7375 Bonus ------- Entered Garrisons 200 Entered DSFs 500 Cogmind --------- Core Integrity 0/1300 Matter 244/300 Energy 98/100 System Corruption 0% Temperature Cool (0) Movement Core (50) Location -3/Garrison Parts ------- > --- POWER (3) -------- (None) > --- PROPULSION (6) --- (None) > --- UTILITY (6) ------ (None) > --- WEAPON (6) ------- (None) > --- INVENTORY (10) --- Improved Field Recycling Unit (0) Peak State ------------ > --- POWER ------------ (None) > --- PROPULSION ------- Titanium Leg Airjet Cooled Aerolev Unit > --- UTILITY ---------- Advanced Signal Interpreter Advanced ECM Suite Improved Thermal Defense Suite > --- WEAPON ----------- (None) > --- INVENTORY -------- Improved Sensor Array Improved Field Recycling Unit [Rating: 28] Favorites ----------- Power Cooled Ion Engine Engine Cooled Ion Engine Propulsion Armored Wheel Leg Titanium Leg Wheel Armored Wheel Hover Unit Cooled Aerolev Unit Flight Unit Nuclear Pulse Thruster Utility Shield Generator Device Shield Generator Processor Advanced Signal Interpreter Protection Insulated Plating Weapon Improved Medium Laser Energy Gun Improved Medium Laser Energy Cannon Heavy Ion Cannon Launcher Mini Grenade Launcher Build | -11 -10 -9 -8 -7 -6 -6 -5 -4 -3 -3 ------- Run | Yrd Mat Mat Mat Fac Fac DSF Fac Fac Res Gar Slots Evolved 14 | . . 2 2 2 2 . 2 2 2 . Power 2 | . . . . 1 . . 1 . . . Propulsion 4 | . . . 1 1 1 . 1 . . . Utility 4 | . . 1 . . 1 . . 1 1 . Weapon 4 | . . 1 1 . . . . 1 1 . Parts Attached 4 | . . . 3 . . . . 1 . . Power . | . . . . . . . . . . . Engine . | . . . . . . . . . . . Core . | . . . . . . . . . . . Reactor . | . . . . . . . . . . . Propulsion 2 | . . . 2 . . . . . . . Treads . | . . . . . . . . . . . Leg . | . . . . . . . . . . . Wheel . | . . . . . . . . . . . Hover . | . . . . . . . . . . . Flight 2 | . . . 2 . . . . . . . Utility 1 | . . . . . . . . 1 . . Device 1 | . . . . . . . . 1 . . Storage . | . . . . . . . . . . . Processor . | . . . . . . . . . . . Hackware . | . . . . . . . . . . . Protection . | . . . . . . . . . . . Artifact . | . . . . . . . . . . . Weapon 1 | . . . 1 . . . . . . . Energy Gun . | . . . . . . . . . . . Energy Cannon . | . . . . . . . . . . . Ballistic Gun . | . . . . . . . . . . . Ballistic Cannon . | . . . . . . . . . . . Launcher 1 | . . . 1 . . . . . . . Special Weapon . | . . . . . . . . . . . Impact Weapon . | . . . . . . . . . . . Slashing Weapon . | . . . . . . . . . . . Piercing Weapon . | . . . . . . . . . . . Special Melee Weapon . | . . . . . . . . . . . Unidentified Prototypes . | . . . . . . . . . . . Parts Lost 16 | . . . 15 . . . . 1 . . Power 1 | . . . 1 . . . . . . . Propulsion 5 | . . . 5 . . . . . . . Utility 5 | . . . 4 . . . . 1 . . Weapon 5 | . . . 5 . . . . . . . Highest Loss Streak 13 | . . . 13 . . . . 1 . . To Critical Strikes . | . . . . . . . . . . . Average Backups 1 | . . 2 2 2 2 2 2 1 1 1 Power . | . . . . . . . . . . . Propulsion . | . . 1 1 . . . . . . . Utility . | . . . . 2 2 2 2 1 1 1 Weapon . | . . . . . . . . . . . Tool/Special . | . . . . . . . . . . . Unused Backups 1 | . . . . . . . . . . 1 Power . | . . . . . . . . . . . Propulsion . | . . . . . . . . . . . Utility 1 | . . . . . . . . . . 1 Weapon . | . . . . . . . . . . . Tool/Special . | . . . . . . . . . . . Average Slot Usage (%) 49 | . 100 84 55 23 20 12 . 5 . . Engine 6 | . 14 11 6 . . . . . . . Wheel 11 | . 28 22 11 . . . . . . . Device 12 | . 28 22 10 15 13 7 . 5 . . Energy Gun 6 | . 14 11 7 . . . . . . . Energy Cannon 3 | . . 7 6 . . . . . . . Launcher 5 | . 14 11 5 . . . . . . . Peak Build Rating 28 | 15 15 20 28 17 17 17 . 3 . . Average Rating 12 | 15 15 18 19 17 17 10 . 2 . . On Entrance 9 | . 15 15 20 17 17 17 . . . . Naked Turns 341 | . . . 6 . . 17 180 2 87 49 Heaviest Build 26 | 15 15 23 26 9 9 9 . 1 . . Greatest Support 24 | 24 24 24 24 9 9 9 3 3 3 3 Greatest Overweight (x) 3 | . . . 3 . . 2 . . . . Average Overweight (x) . | . . . . . . . . . . . Largest Inventory Capacity 10 | 10 10 10 10 10 10 10 10 10 10 10 Average Capacity 10 | 10 10 10 10 10 10 10 10 10 10 10 Most Carried 3 | . . 3 3 2 2 2 2 1 1 1 Average Carried 1 | . . 2 2 2 2 2 2 1 1 1 Final Capacity 10 | 10 10 10 10 10 10 10 10 10 10 10 Final Carried 3 | . . 3 2 2 2 2 2 1 1 1 Class Distribution -------------------- 64% | Mutant 31% | Tank 4% | Gunner Dominant Class ---------------- Mutant | -10/Materials Tank | -9/Materials Mutant | -8/Materials Mutant | -7/Factory Mutant | -6/Factory Mutant | -6/DSF Mutant | -5/Factory Mutant | -4/Factory Mutant | -3/Research Mutant | -3/Garrison Resources | -11 -10 -9 -8 -7 -6 -6 -5 -4 -3 -3 ----------- Run | Yrd Mat Mat Mat Fac Fac DSF Fac Fac Res Gar Matter Collected 368 | . 8 342 18 . . . . . . . Remotely . | . . . . . . . . . . . Salvage Created 1021 | . 11 634 376 . . . . . . . Parts . | . . . . . . . . . . . Haulers Intercepted . | . . . . . . . . . . . Recyclers Shooed . | . . . . . . . . . . . Parts Field Recycled . | . . . . . . . . . . . Retrieved Matter . | . . . . . . . . . . . Parts Self-Destructed . | . . . . . . . . . . . Prevented . | . . . . . . . . . . . Kills | -11 -10 -9 -8 -7 -6 -6 -5 -4 -3 -3 ------- Run | Yrd Mat Mat Mat Fac Fac DSF Fac Fac Res Gar Combat Hostiles Destroyed 21 | . 3 13 5 . . . . . . . Guns 5 | . . 3 2 . . . . . . . Cannons 4 | . . 4 . . . . . . . . AOE 12 | . 3 6 3 . . . . . . . Classes Destroyed 9 | . 2 4 3 . . . . . . . Worker 1 | . . 1 . . . . . . . . Builder 1 | . . . 1 . . . . . . . Recycler 2 | . . 1 1 . . . . . . . Operator 1 | . . . 1 . . . . . . . Watcher 7 | . 1 5 1 . . . . . . . Swarmer 6 | . 3 3 . . . . . . . . Grunt 10 | . . 7 3 . . . . . . . Duelist 1 | . . . 1 . . . . . . . Sentry 4 | . . 3 1 . . . . . . . Best Kill Streak 6 | . 3 6 5 . . . . . . . Combat Bots Only 4 | . 3 4 3 . . . . . . . Max Kills in Single Turn 3 | . 1 3 2 . . . . . . . Gunslinging . | . . . . . . . . . . . Exploded 3 | . 1 3 2 . . . . . . . Melee . | . . . . . . . . . . . Uniques/NPCs Destroyed . | . . . . . . . . . . . Combat | -11 -10 -9 -8 -7 -6 -6 -5 -4 -3 -3 -------- Run | Yrd Mat Mat Mat Fac Fac DSF Fac Fac Res Gar Hostile Shots Fired 302 | . 7 40 96 6 . 25 18 20 42 48 Missed 98 | . 1 11 30 1 . 9 6 10 20 10 Hits 204 | . 6 29 66 5 . 16 12 10 22 38 Melee 15 | . . . 4 . . 10 1 . . . Projectile 189 | . 6 29 62 5 . 6 11 10 22 38 AOE 5 | . . . 2 . . 3 . . . . Critical Strikes 22 | . . . 10 . . 5 3 . 1 3 Damage Taken 3731 | . 69 274 1200 27 . 492 228 137 687 617 Core 2533 | . 36 85 331 11 . 411 228 127 687 617 Absorbed by Shields 272 | . 30 109 35 . . . . . . 98 Core Remaining (%) 77 | 100 85 78 39 98 . 51 77 88 . . Volleys Fired 61 | . 6 31 24 . . . . . . . Largest 3 | . 2 2 3 . . . . . . . Hottest 176 | . 86 121 176 . . . . . . . Shots Fired 121 | . 12 56 53 . . . . . . . Gun 65 | . 6 31 28 . . . . . . . Cannon 36 | . . 16 20 . . . . . . . Launcher 20 | . 6 9 5 . . . . . . . Special . | . . . . . . . . . . . Kinetic . | . . . . . . . . . . . Thermal 93 | . 6 47 40 . . . . . . . Explosive 20 | . 6 9 5 . . . . . . . Electromagnetic 8 | . . . 8 . . . . . . . Robot Hit Streak 7 | . 3 7 6 . . . . . . . Robot Miss Streak 8 | . 1 2 8 . . . . . . . Penetration Max . | . . . . . . . . . . . Secondary Targets . | . . . . . . . . . . . Shots Hit Robots 53 | . 4 25 24 . . . . . . . Core Hits 45 | . 3 26 16 . . . . . . . Critical Kills . | . . . . . . . . . . . Critical Parts Destroyed . | . . . . . . . . . . . Critical Strikes 4 | . 1 1 2 . . . . . . . Burn 4 | . 1 1 2 . . . . . . . Melee Attacks . | . . . . . . . . . . . Impact . | . . . . . . . . . . . Slashing . | . . . . . . . . . . . Piercing . | . . . . . . . . . . . Sneak Attacks . | . . . . . . . . . . . Combat Hostiles . | . . . . . . . . . . . Follow-up Attacks . | . . . . . . . . . . . Damage Inflicted 2298 | . 341 978 948 . . . 9 22 . . Guns 621 | . 16 322 283 . . . . . . . Cannons 484 | . . 239 245 . . . . . . . Explosions 1162 | . 325 417 420 . . . . . . . Melee . | . . . . . . . . . . . Ramming 31 | . . . . . . . 9 22 . . Kinetic . | . . . . . . . . . . . Thermal 1044 | . 16 561 467 . . . . . . . Explosive 1162 | . 325 417 420 . . . . . . . Electromagnetic 61 | . . . 61 . . . . . . . Impact . | . . . . . . . . . . . Slashing . | . . . . . . . . . . . Piercing . | . . . . . . . . . . . Highest Corruption 5 | . . . . . . . 5 1 . . Average Corruption 3 | . . . . . . . 3 1 . . Corruption Purged . | . . . . . . . . . . . Corruption Blocked . | . . . . . . . . . . . Effects 3 | . . . . . . . 3 . . . Message Errors 1 | . . . . . . . 1 . . . Matter Fused 1 | . . . . . . . 1 . . . Energy Discharges 1 | . . . . . . . 1 . . . Overload Shots . | . . . . . . . . . . . Overflow Damage 43 | . 23 15 5 . . . . . . . Projectiles 15 | . . 15 . . . . . . . . Explosions 28 | . 23 . 5 . . . . . . . Melee . | . . . . . . . . . . . Knockbacks 1 | . . . . . . . . 1 . . Impact 1 | . . . . . . . . 1 . . Kinetic . | . . . . . . . . . . . Secondary . | . . . . . . . . . . . Self-Inflicted Damage 202 | . 50 44 93 . . . 4 11 . . Shots 5 | . 2 1 2 . . . . . . . Rammed 4 | . . . . . . . 2 2 . . Targets Rammed 4 | . . . . . . . 2 2 . . Kicked . | . . . . . . . . . . . Crushed . | . . . . . . . . . . . Highest Temperature 494 | . 54 328 494 . . . . . . . Average Temperature 120 | . 24 83 169 . . . . . . . Received Heat Transfer 782 | . . 68 471 . . . . . 36 207 Effects 3 | . . 1 2 . . . . . . . Energy Bleed 1 | . . 1 . . . . . . . . Interference 1 | . . . 1 . . . . . . . Matter Decay 1 | . . . 1 . . . . . . . Siege Activations . | . . . . . . . . . . . Martial Activations . | . . . . . . . . . . . Shielding Activations . | . . . . . . . . . . . Robots Disrupted . | . . . . . . . . . . . Combat Hostiles . | . . . . . . . . . . . Robots Corrupted . | . . . . . . . . . . . Combat Hostiles . | . . . . . . . . . . . Parts Fried . | . . . . . . . . . . . Impact Corruptions . | . . . . . . . . . . . Robots Melted . | . . . . . . . . . . . Combat Hostiles . | . . . . . . . . . . . Parts Melted . | . . . . . . . . . . . Heat Transferred 2183 | . 111 1110 962 . . . . . . . Parts Sabotaged . | . . . . . . . . . . . Parts Stolen . | . . . . . . . . . . . Parts Stripped . | . . . . . . . . . . . Power Chain Reactions . | . . . . . . . . . . . Alert | -11 -10 -9 -8 -7 -6 -6 -5 -4 -3 -3 ------- Run | Yrd Mat Mat Mat Fac Fac DSF Fac Fac Res Gar Maximum Alert Level 1 | . . 1 1 . . . . . . . Low Security (%) 68 | 100 100 26 80 100 100 100 100 100 100 100 Level 1 31 | . . 73 19 . . . . . . . Level 2 . | . . . . . . . . . . . Level 3 . | . . . . . . . . . . . Level 4 . | . . . . . . . . . . . Level 5 . | . . . . . . . . . . . High Security . | . . . . . . . . . . . Max Security . | . . . . . . . . . . . Peak Influence 367 | . 140 367 238 89 33 23 30 . . 32 Initial 137 | . . 54 137 89 33 23 11 . . 18 Average 132 | . 89 237 166 81 33 23 6 . . 28 Influence Increases 1048 | . 160 493 321 . . . 36 . 24 14 Destroy 0b10 Robot/C 420 | . 60 260 100 . . . . . . . Destroy 0b10 Robot/NC 60 | . 5 35 20 . . . . . . . Destroy Leader 114 | . 12 70 32 . . . . . . . Successful Hack 44 | . . . . . . . 6 . 24 14 Disable Machine 120 | . 60 15 45 . . . . . . . Destroy Structure 155 | . 23 68 64 . . . . . . . Partial Spotted 15 | . . . . . . . 15 . . . Lose Combat Pursuer 120 | . . 45 60 . . . 15 . . . Influence Decreases 1016 | . 30 298 448 129 36 10 59 . . 6 Entered New Map 437 | . . 76 188 109 36 10 12 . . 6 Time Decay 429 | . 30 222 110 20 . . 47 . . . Lost Part 150 | . . . 150 . . . . . . . Squads Dispatched 7 | . . . 2 . . 1 3 1 . . Investigation 1 | . . . . . . . . 1 . . Extermination 1 | . . . . . . . 1 . . . Reinforcement 5 | . . . 2 . . 1 2 . . . Assault . | . . . . . . . . . . . Garrison . | . . . . . . . . . . . Intercept . | . . . . . . . . . . . Searches Triggered . | . . . . . . . . . . . Construction Impeded . | . . . . . . . . . . . Haulers Reinforced . | . . . . . . . . . . . Active Scanning Responses . | . . . . . . . . . . . Cargo Convoy Interrupts . | . . . . . . . . . . . Stealth | -11 -10 -9 -8 -7 -6 -6 -5 -4 -3 -3 --------- Run | Yrd Mat Mat Mat Fac Fac DSF Fac Fac Res Gar Distress Signals 3 | . . 1 2 . . . . . . . Communications Jammed . | . . . . . . . . . . . Distress Signals . | . . . . . . . . . . . Times Spotted 77 | . 4 21 21 1 . 5 8 2 10 5 Peak Tracking Total 9 | . 3 4 9 1 . 5 5 2 9 3 Tactical Retreats 8 | . . 3 4 . . . 1 . . . Traps | -11 -10 -9 -8 -7 -6 -6 -5 -4 -3 -3 ------- Run | Yrd Mat Mat Mat Fac Fac DSF Fac Fac Res Gar Traps Triggered 8 | . . . . . . 1 4 . 1 2 Indirectly . | . . . . . . . . . . . Trap Hack Attempts . | . . . . . . . . . . . Triggered . | . . . . . . . . . . . Disarmed . | . . . . . . . . . . . Reprogrammed . | . . . . . . . . . . . Reused . | . . . . . . . . . . . Traps Extracted . | . . . . . . . . . . . Installed . | . . . . . . . . . . . Triggered . | . . . . . . . . . . . Machines | -11 -10 -9 -8 -7 -6 -6 -5 -4 -3 -3 ---------- Run | Yrd Mat Mat Mat Fac Fac DSF Fac Fac Res Gar Machines Disabled 8 | . 4 1 3 . . . . . . . Max in Single Turn 2 | . 2 1 1 . . . . . . . Machines Repaired . | . . . . . . . . . . . Machines Dismantled . | . . . . . . . . . . . Machines Sabotaged . | . . . . . . . . . . . Overloaded Fab Kills . | . . . . . . . . . . . Hacking | -11 -10 -9 -8 -7 -6 -6 -5 -4 -3 -3 --------- Run | Yrd Mat Mat Mat Fac Fac DSF Fac Fac Res Gar Machines Accessed 5 | . . . . . 1 . 1 1 1 1 Terminals 3 | . . . . . 1 . 1 . . 1 Fabricators . | . . . . . . . . . . . Repair Stations . | . . . . . . . . . . . Recycling Units . | . . . . . . . . . . . Scanalyzers . | . . . . . . . . . . . Garrison Access 2 | . . . . . . . . 1 1 . Total Hacks 8 | . . . . . 1 . 3 2 1 1 Successful 5 | . . . . . 1 . 2 . 1 1 Failed 3 | . . . . . . . 1 2 . . Catastrophic 1 | . . . . . . . . 1 . . Database Lockouts . | . . . . . . . . . . . Manual 1 | . . . . . . . 1 . . . Terminals 5 | . . . . . 1 . 3 . . 1 Fabricators . | . . . . . . . . . . . Repair Stations . | . . . . . . . . . . . Recycling Units . | . . . . . . . . . . . Scanalyzers . | . . . . . . . . . . . Garrison Access 3 | . . . . . . . . 2 1 . Terminal Hacks 3 | . . . . . 1 . 1 . . 1 Record 1 | . . . . . . . 1 . . . Open DSF 1 | . . . . . 1 . . . . . Emergency Access Points 1 | . . . . . . . . . . 1 Fabricator Hacks . | . . . . . . . . . . . Repair Station Hacks . | . . . . . . . . . . . Recycling Unit Hacks . | . . . . . . . . . . . Scanalyzer . | . . . . . . . . . . . Garrison Access Hacks 1 | . . . . . . . . . 1 . Unlock Access 1 | . . . . . . . . . 1 . Unauthorized Hacks 1 | . . . . . . . 1 . . . Terminals 1 | . . . . . . . 1 . . . Assimilate 1 | . . . . . . . 1 . . . Fabricators . | . . . . . . . . . . . Repair Stations . | . . . . . . . . . . . Recycling Units . | . . . . . . . . . . . Scanalyzers . | . . . . . . . . . . . Garrison Access . | . . . . . . . . . . . Data Cores Recovered 1 | . . . 1 . . . . . . . Used . | . . . . . . . . . . . Hacking Detections 3 | . . . . . . . . 1 1 1 Full Trace Events 1 | . . . . . . . . 1 . . Feedback Events . | . . . . . . . . . . . Feedback Blocked . | . . . . . . . . . . . Robot Schematics Acquired . | . . . . . . . . . . . Robots Built . | . . . . . . . . . . . Authchips . | . . . . . . . . . . . Time . | . . . . . . . . . . . Total Robot Build Rating . | . . . . . . . . . . . Part Schematics Acquired . | . . . . . . . . . . . Parts Built . | . . . . . . . . . . . Authchips . | . . . . . . . . . . . Time . | . . . . . . . . . . . Total Part Build Rating . | . . . . . . . . . . . Parts Repaired . | . . . . . . . . . . . Time . | . . . . . . . . . . . Parts Recycled . | . . . . . . . . . . . Recycled Matter . | . . . . . . . . . . . Retrieved Matter . | . . . . . . . . . . . Retrieved Components . | . . . . . . . . . . . Parts Scanalyzed . | . . . . . . . . . . . Part Schematics Acquired . | . . . . . . . . . . . Parts Damaged . | . . . . . . . . . . . Bothacking | -11 -10 -9 -8 -7 -6 -6 -5 -4 -3 -3 ------------ Run | Yrd Mat Mat Mat Fac Fac DSF Fac Fac Res Gar Used RIF Installer . | . . . . . . . . . . . Robots Hacked . | . . . . . . . . . . . Non-combat . | . . . . . . . . . . . Combat . | . . . . . . . . . . . Robot Hacks Applied . | . . . . . . . . . . . Relay Couplers Released . | . . . . . . . . . . . Fabnet Peak Effective % . | . . . . . . . . . . . Robots Rewired . | . . . . . . . . . . . Allies Hacked 1 | . . . . . . . 1 . . . Hacks Repelled . | . . . . . . . . . . . Allies | -11 -10 -9 -8 -7 -6 -6 -5 -4 -3 -3 -------- Run | Yrd Mat Mat Mat Fac Fac DSF Fac Fac Res Gar Total Allies 1 | . . . . . . . 1 . . . Largest Group 1 | . . . . . . . 1 . . . Highest-Rated Group 9 | . . . . . . . 9 . . . Highest-Rated Ally 9 | . . . . . . . 9 . . . Total Orders . | . . . . . . . . . . . Ally Attacks . | . . . . . . . . . . . Total Damage . | . . . . . . . . . . . Kills . | . . . . . . . . . . . Allies Corrupted 1 | . . . . . . . 1 . . . Allies Melted . | . . . . . . . . . . . Intel | -11 -10 -9 -8 -7 -6 -6 -5 -4 -3 -3 ------- Run | Yrd Mat Mat Mat Fac Fac DSF Fac Fac Res Gar Active Infowar (turns) 647 | 17 74 465 64 . . . . 27 . . Sensors 27 | . . . . . . . . 27 . . Structural 616 | 17 74 465 60 . . . . . . . ECM 4 | . . . 4 . . . . . . . Robot Analysis Total . | . . . . . . . . . . . Derelict Logs Recovered . | . . . . . . . . . . . Drone Launches . | . . . . . . . . . . . Drone Recoveries . | . . . . . . . . . . . Exploration | -11 -10 -9 -8 -7 -6 -6 -5 -4 -3 -3 ------------- Run | Yrd Mat Mat Mat Fac Fac DSF Fac Fac Res Gar Turns Passed 1229 | 17 74 465 231 45 6 46 180 29 87 49 Spaces Moved 1520 | 19 63 394 211 89 12 87 353 52 172 68 Core 696 | . . . 14 . . 37 353 52 172 68 Treads . | . . . . . . . . . . . Legs 7 | . . . 7 . . . . . . . Wheels 570 | 19 63 394 94 . . . . . . . Hover 222 | . . . 71 89 12 50 . . . . Flight 25 | . . . 25 . . . . . . . Fastest Speed 37 | 90 90 90 37 50 50 50 50 50 50 50 Average Speed 65 | 90 90 90 73 50 50 52 50 50 50 50 Slowest Speed 200 | 90 90 90 200 50 50 150 50 50 50 50 Overloaded Moves . | . . . . . . . . . . . Propulsion Burnouts . | . . . . . . . . . . . Robots Hopped . | . . . . . . . . . . . Potential Cave-ins . | . . . . . . . . . . . Cave-ins Triggered . | . . . . . . . . . . . Exploration Rate (%) 21 | 5 21 49 33 3 1 87 14 1 8 13 Regions Visited 10 Branch Regions . Pre-discovered Areas . | . . . . . . . . . . . Known Exits Taken 2 | . . . . . 1 . . . 1 . Unknown Exits Taken 7 | 1 1 1 1 1 . . 1 1 . . Scrap Searched . | . . . . . . . . . . . Spaces Dug . | . . . . . . . . . . . Terrain Destroyed 190 | . 36 74 80 . . . . . . . Melee . | . . . . . . . . . . . Projectile 16 | . . 6 10 . . . . . . . AOE 174 | . 36 68 70 . . . . . . . Terrain Rammed . | . . . . . . . . . . . Walls Destroyed . | . . . . . . . . . . . Machines Disabled . | . . . . . . . . . . . Actions | -11 -10 -9 -8 -7 -6 -6 -5 -4 -3 -3 --------- Run | Yrd Mat Mat Mat Fac Fac DSF Fac Fac Res Gar Total 1624 | 18 68 448 240 88 11 86 356 54 172 83 Wait 26 | . . 24 . . . . 2 . . . Move 1512 | 18 62 393 210 88 11 86 353 51 172 68 Hop . | . . . . . . . . . . . Pick Up 2 | . . . 2 . . . . . . . Fast Attach . | . . . . . . . . . . . Attach 5 | . . . 4 . . . . 1 . . Detach . | . . . . . . . . . . . Swap . | . . . . . . . . . . . Drop . | . . . . . . . . . . . Fire 61 | . 6 31 24 . . . . . . . Melee . | . . . . . . . . . . . Ram 3 | . . . . . . . 1 2 . . Kick . | . . . . . . . . . . . Crush . | . . . . . . . . . . . Escape Stasis 15 | . . . . . . . . . . 15 Rewire . | . . . . . . . . . . . Trap . | . . . . . . . . . . . Miscellaneous . | . . . . . . . . . . . Route ------- -11/Scrapyard -10/Materials (discovered 2 exits: [*Mat] / [*Min]) -9/Materials -8/Materials -7/Factory -6/Factory -6/DSF -5/Factory -4/Factory -3/Research -3/Garrison History --------- Turn | Location | Event 6 | -11/Scrapyard | Discovered new exit (range 13) 18 | -11/Scrapyard | Entered Materials 39 | -10/Materials | Discovered new exit (range 15) 76 | -10/Materials | Discovered new exit (range 15) 92 | -10/Materials | Entered another Materials area 92 | -9/Materials | Evolved 2 slots: Utility x1, Weapon x1 546 | -9/Materials | Discovered new exit (range 10) 552 | -9/Materials | Build established: Tank 557 | -9/Materials | Entered another Materials area 557 | -8/Materials | Evolved 2 slots: Propulsion x1, Weapon x1 730 | -8/Materials | Core integrity fell below 50% 762 | -8/Materials | Lost 13 parts (1p4n3u5w) 782 | -8/Materials | Discovered new exit (range 9) 788 | -8/Materials | Entered Factory 788 | -7/Factory | Evolved 2 slots: Power x1, Propulsion x1 830 | -7/Factory | Discovered new exit (range 5) 833 | -7/Factory | Entered another Factory area 833 | -6/Factory | Evolved 2 slots: Propulsion x1, Utility x1 839 | -6/Factory | Identified exit to DSF 839 | -6/Factory | Entered DSF 857 | -6/DSF | Additional patrols routed to DSF 878 | -6/DSF | Discovered new exit (range 14) 885 | -6/DSF | Entered Factory 885 | -5/Factory | Evolved 2 slots: Power x1, Propulsion x1 985 | -5/Factory | Build established: Mutant 1062 | -5/Factory | Discovered new exit (range 7) 1065 | -5/Factory | Entered another Factory area 1065 | -4/Factory | Evolved 2 slots: Utility x1, Weapon x1 1086 | -4/Factory | Discovered new exit (range 15) 1094 | -4/Factory | Entered Research 1094 | -3/Research | Evolved 2 slots: Utility x1, Weapon x1 1144 | -3/Research | Spotted B-86 Titan 1174 | -3/Research | Spotted B-86 Titan 1178 | -3/Research | Core integrity fell below 50% 1181 | -3/Research | Identified exit to Garrison 1181 | -3/Research | Entered Garrison 1189 | -3/Garrison | Triggered checkpoint 1221 | -3/Garrison | Core integrity fell below 20% 1230 | -3/Garrison | Destroyed by H-77 Assassin with High-powered Shotgun Last Messages --------------- 01215_ Field strength at 65. 01216_ Field strength at 59. 01217_ Field strength at 53. 01218_ Field strength at 36. 01219_ Field strength at 30. 01220_ Field strength at 13. 01220_ Stasis field depleted. 01221_ Triggered Stasis Trap. 01221_ A bubble of rippling energy engulfs the area. 01221_ Field strength at 94. 01221_ Field strength at 88. 01222_ Field strength at 82. 01223_ Field strength at 55. 01224_ Field strength at 49. 01225_ Field strength at 43. 01226_ Field strength at 20. 01227_ Field strength at 3. 01228_ Stasis field depleted. 01230_ Penetrated by Slug. Map ----- +----------------------------------------------------+ | ???????????????????????????????????????+?????????? | | ????+????????????????????????????????????????????? | | ?????????????????????????????????????????????????? | | ?????????????????????????????????????????????????? | | ????????????????????+????????????????????????????? | | ???????????????+???????????????????????+?????????? | | ???????????????????????????????????????+?????????? | | ?????????????????????????????????????????????????? | | ?????????????????????????????????????????????????? | | ?????????????????????????????????????????????????? | | ????????????????????????? ?????????????????????? | | ????????????????????????? h ????????????????????? | | ????????????????????????? ????????????????????? | | ????????????????????????? #????????????????????? | | ????????????????????????? ##???????????????????? | | ????????????????????????+ h ????????????????????+ | | ????????????????????????+ ????????????????????+ | | ????????????????????????# ????????????????????? | | ????????????????????????# #????????????????????? | | ????????????????????????# #????????????????????? | | ????????????????????????# #????????????????????? | | ????????????????????????+ #????????????????????? | | ????????????????????????# #????????????????????? | | ????##+#????????????????# #????????????????????? | | ????# ????????????????# #????????????????????? | | ##### ########++###+###@ #????????????????????? | | #????????????????????? | | #????????????????????? | | #????????????????????? | | ################ #########+#????????????????????? | | ???????????????# #??????????????????????????????? | | ???????????????# #??????????????????????????????? | | ???????????????# #??????????????????????????????? | | ???????????????# #??????????????????????????????? | | ??????????????## #??????????????????????????????? | | ??????????????#T #????###???????????+???????????? | | ??????????????## #???"""#???????????????????????? | | ???????????????# ### ###??????????????????????? | | ???????????????# +??????????????????????? | | ???????????????# #?????????+?+??????????? | | ???????????????# ##"""""##????????/???/?????????? | | ???????????????# #??????????????????????????????? | | ???????????????# #??+??????????????+?+??????????? | | ???????????????# #??????????????????????????????? | | ???????????????# +??????????????????????????????? | | ???????????????# ##??????????????????????????????? | | ??????????????## ###?????????????????????????????? | | ??????????????# #?????????????????????????????? | | ??????????????# #?????????????????????????????? | | ??????????????## ##?????????????????????????????? | +----------------------------------------------------+ Best States ------------- Heat Dissipation 46 Energy Generation 14 Energy Capacity 280 Matter Stores 300 Matter Capacity 300 Sight Range 16 Robot Scan Range 15 Terrain Scan Density 10 ECM Strength 2 Armor Coverage 150 Resistance: TH 25 Resistance: EM 15 Evasion (%) 62 Item Schematics ----------------- None Robot Schematics ------------------ None Fabricated ------------ Nothing Repaired ---------- Nothing Alien Tech Used ----------------- None Achievements -------------- None Challenges ------------ None Cogshop Purchases (20) ------------------------ Arm. Wheel (769) Arm. Wheel (769) Shield Generator (Loot Box) Structural Scanner (Loot Box) Mni. Grenade Launcher (Loot Box) Imp. Medium Laser (Loot Box) Cld. Ion Engine (Loot Box) Nuclear Pulse Thruster (Loot Box) Hvy. Ion Cannon (Loot Box) Nuclear Pulse Thruster (Loot Box) Hvy. Rocket Launcher (Loot Box) Arc Projector (1007) Insulated Plating (731) Adv. ECM Suite (Loot Box) Adv. Signal Interpreter (Loot Box) Imp. Thermal Defense Suite (Loot Box) Cld. Aerolev Unit (Loot Box) Imp. Field Recycling Unit (Loot Box) Titanium Leg (Loot Box) Airjet (Loot Box) Game ------ Seed StorageThermoelectricOptics Manual? 0 Play Time 00:22:43 Cumulative 268.9 hours Start 2025.05.29 @ 13:27:56 End 2025.05.29 @ 13:53:44 Sessions 1 Manual Loads 0 Difficulty Rogue Special Mode AFD2019/Pay2Buy Game No. 417 Rogue 417 Adventurer 0 Explorer 0 Win Type - Total 1 Types 1/0/0/0/0/0/0/0/0/0 Lore% 64 Gallery% 63 Achievement% 43 Wizard Run 0 Options --------- Layout 1 ASCII 0 Keyboard 0 Movement Mouse Keybinds 0 Fullscreen 2 Font 24/Smallcaps Map View 50x35 Zoom Use 0% Tactical HUD 1 Map Filters NONE Filters NONE Steam 1 RUN: 7864805d-3421-4617-bb23-b27322ad1eec